bitfinex/quotes_SOLUSD_20241229
["timestamp","ask_amount","ask_price","bid_price","bid_amount"]
[1735508923221,1.5229,191.07,191.06,16.16936133]
[1735508923397,12.06508741,191.07,191.06,16.16936133]
[1735508924179,12.84787236,191.07,191.06,16.16936133]
[1735508924436,36.62475636,191.07,191.06,16.16936133]
[1735508929408,2.30568495,191.07,191.06,16.16936133]
[1735508930427,12.84787236,191.07,191.06,16.16936133]
[1735508930603,2.30568495,191.07,191.06,16.16936133]
[1735508930812,0.78278495,191.07,191.06,16.16936133]
[1735508931715,5.75345704,191.12,191.06,16.16936133]
[1735508931716,0.78278495,191.11,191.06,16.16936133]
[1735508932423,23.776884,191.1,191.06,16.16936133]
[1735508932628,23.776884,191.08,191.06,16.16936133]
[1735508933529,24.55966895,191.1,191.06,16.16936133]
[1735508934436,35.10185636,191.1,191.06,16.16936133]
[1735508936231,23.776884,191.08,191.06,16.16936133]
[1735508936540,35.10185636,191.07,191.06,16.16936133]
[1735508947360,39.1971134,191.07,191.06,16.16936133]
[1735508947527,28.65492599,191.07,191.06,16.16936133]
[1735508947735,39.1971134,191.07,191.06,16.16936133]
[1735508950538,23.776884,191.06,191.0,0.573425]
[1735508950739,34.31907141,191.01,191.0,0.573425]
[1735508954674,10.54218741,191.01,191.0,0.573425]
[1735508956857,11.32497236,191.01,191.0,0.573425]
[1735508957970,10.54218741,191.01,191.0,0.573425]
[1735508959461,10.54218741,191.01,190.94,0.036]
[1735508959462,20.0,190.98,190.94,0.036]
[1735508959660,23.776884,190.94,190.83,1.5275]
[1735508960002,10.54218741,190.91,190.84,10.54218741]
[1735508960276,11.32497236,190.9,190.83,1.5275]
[1735508960482,10.54218741,190.89,190.83,12.06968741]
[1735508961269,10.54218741,190.89,190.82,10.54218741]
[1735508961462,10.54218741,190.89,190.78,1.5275]
[1735508961463,0.78278495,190.88,190.78,1.5275]
[1735508961667,10.54218741,190.89,190.83,10.54218741]
[1735508962193,2.34598495,190.93,190.85,10.54218741]
[1735508962484,10.54218741,190.92,190.85,10.54218741]
[1735508962655,2.34598495,190.93,190.85,10.54218741]
[1735508962656,11.32497236,190.91,190.85,10.54218741]
[1735508963082,0.78278495,190.91,190.86,10.54218741]
[1735508963272,10.54218741,190.94,190.87,10.54218741]
[1735508963467,10.54218741,190.94,190.83,6.525]
[1735508963468,10.54218741,190.92,190.86,20.0]
[1735508963684,7.8971,190.97,190.86,20.0]
[1735508963685,11.32497236,190.91,190.86,20.0]
[1735508963979,11.32497236,190.91,190.83,17.06718741]
[1735508963980,10.54218741,190.9,190.83,17.06718741]
[1735508964488,10.54218741,190.9,190.83,6.525]
[1735508964672,10.54218741,190.9,190.83,17.06718741]
[1735508965062,0.78278495,190.89,190.83,17.06718741]
[1735508965350,0.78278495,190.89,190.84,10.54218741]
[1735508965552,1.5632,190.84,190.65,38.14204154]
[1735508965796,0.78278495,190.83,190.76,10.54218741]
[1735508966136,10.54218741,190.82,190.74,23.776884]
[1735508966425,10.54218741,190.8,190.73,6.525]
[1735508966613,0.78278495,190.81,190.77,20.0]
[1735508966614,10.54218741,190.81,190.77,20.0]
[1735508966786,10.54218741,190.81,190.74,10.54218741]
[1735508966992,10.54218741,190.83,190.76,10.54218741]
[1735508967193,10.54218741,190.84,190.77,20.0]
[1735508967508,10.54218741,190.82,190.77,20.0]
[1735508967712,10.54218741,190.82,190.76,30.54218741]
[1735508967918,0.78278495,190.87,190.76,30.54218741]
[1735508967919,10.54218741,190.8,190.76,20.0]
[1735508968229,10.54218741,190.82,190.75,10.54218741]
[1735508968829,10.54218741,190.82,190.76,30.54218741]
[1735508969036,10.54218741,190.83,190.76,30.54218741]
[1735508969211,10.54218741,190.84,190.77,10.54218741]
[1735508970306,10.54218741,190.85,190.79,10.54218741]
[1735508970728,10.54218741,190.85,190.78,10.54218741]
[1735508971213,10.04218741,190.85,190.78,10.54218741]
[1735508972743,2.34598495,190.88,190.79,10.54218741]
[1735508972744,10.54218741,190.86,190.79,10.54218741]
[1735508973303,11.32497236,190.85,190.76,20.0]
[1735508973509,10.54218741,190.86,190.79,10.54218741]
[1735508973728,10.54218741,190.86,190.76,20.78606374]
[1735508973729,10.54218741,190.86,190.8,10.54218741]
[1735508974398,10.54218741,190.85,190.78,10.54218741]
[1735508974607,11.32497236,190.85,190.78,10.54218741]
[1735508974798,11.32497236,190.85,190.76,20.0]
[1735508975108,11.32497236,190.85,190.78,10.54218741]
[1735508975737,10.54218741,190.86,190.79,10.54218741]
[1735508976342,10.54218741,190.86,190.8,10.54218741]
[1735508977238,10.54218741,190.86,190.79,10.54218741]
[1735508978252,1.5632,190.88,190.78,10.54218741]
[1735508978253,10.54218741,190.85,190.78,10.54218741]
[1735508979256,2.34598495,190.88,190.79,10.54218741]
[1735508979444,10.54218741,190.86,190.79,10.54218741]
[1735508980550,10.54218741,190.86,190.75,23.776884]
[1735508980551,11.32497236,190.85,190.78,30.54218741]
[1735508980738,10.54218741,190.83,190.76,10.54218741]
[1735508980962,11.32497236,190.82,190.76,10.54218741]
[1735508981276,11.32497236,190.82,190.75,10.54218741]
[1735508981433,10.54218741,190.81,190.73,6.525]
[1735508981768,0.78278495,190.8,190.74,10.54218741]
[1735508982557,0.78278495,190.8,190.75,10.54218741]
[1735508982870,10.54218741,190.84,190.78,10.54218741]
[1735508983246,0.78278495,190.83,190.77,10.54218741]
[1735508983454,11.32497236,190.83,190.76,10.54218741]
[1735508984754,11.32497236,190.83,190.75,10.54218741]
[1735508984755,0.78278495,190.83,190.75,10.54218741]
[1735508984969,10.54218741,190.82,190.75,10.54218741]
[1735508985273,10.54218741,190.82,190.73,6.525]
[1735508985274,0.78278495,190.81,190.76,10.54218741]
[1735508985455,0.78278495,190.82,190.76,10.54218741]
[1735508986674,11.32497236,190.82,190.75,10.54218741]
[1735508986879,2.34598495,190.88,190.78,10.54218741]
[1735508987049,10.54218741,190.83,190.77,10.54218741]
[1735508987470,10.54218741,190.83,190.73,7.31122395]
[1735508987658,0.78278495,190.82,190.76,10.54218741]
[1735508988377,11.32497236,190.82,190.75,10.54218741]
[1735508988692,10.54218741,190.81,190.75,10.54218741]
[1735508988863,0.78278495,190.8,190.74,10.54218741]
[1735508989067,11.32497236,190.8,190.73,10.54218741]
[1735508989263,0.78278495,190.8,190.74,10.54218741]
[1735508989468,0.78278495,190.8,190.75,10.54218741]
[1735508989984,0.78278495,190.83,190.77,10.54218741]
[1735508990195,10.54218741,190.84,190.77,10.54218741]
[1735508990406,0.78278495,190.83,190.77,10.54218741]
[1735508990853,0.78278495,190.83,190.72,0.78612942]
[1735508990854,11.32497236,190.83,190.74,20.0]
[1735508991058,11.32497236,190.83,190.76,10.54218741]
[1735508991282,10.54218741,190.82,190.75,10.54218741]
[1735508991482,0.78278495,190.81,190.75,10.54218741]
[1735508991688,11.32497236,190.81,190.74,30.54218741]
[1735508991888,10.54218741,190.8,190.73,10.54218741]
[1735508992114,0.78278495,190.79,190.74,10.54218741]
[1735508992386,0.78278495,190.8,190.73,20.0]
[1735508992688,11.32497236,190.8,190.73,10.54218741]
[1735508993268,10.54218741,190.79,190.73,10.54218741]
[1735508993472,0.78278495,190.78,190.72,10.54218741]
[1735508994794,0.78278495,190.78,190.73,10.54218741]
[1735508996705,11.32497236,190.79,190.73,10.54218741]
[1735508997614,10.54218741,190.78,190.72,10.54218741]
[1735508997908,11.32497236,190.77,190.7,10.54218741]
[1735508998506,11.32497236,190.77,190.71,10.54218741]
[1735508998906,11.32497236,190.77,190.7,10.54218741]
[1735509000418,11.32497236,190.77,190.71,10.54218741]
[1735509001117,0.78278495,190.77,190.71,10.54218741]
[1735509001299,10.54218741,190.78,190.72,10.54218741]
[1735509002126,10.54218741,190.76,190.69,0.78647905]
[1735509002288,10.54218741,190.76,190.7,10.54218741]
[1735509002490,10.54218741,190.77,190.71,10.54218741]
[1735509002714,0.78278495,190.76,190.71,10.54218741]
[1735509003016,11.32497236,190.76,190.7,10.54218741]
[1735509004047,0.78278495,190.76,190.73,10.54218741]
[1735509004217,10.54218741,190.77,190.71,10.54218741]
[1735509004538,0.78278495,190.76,190.7,10.54218741]
[1735509004753,10.54218741,190.77,190.71,10.54218741]
[1735509004913,11.32497236,190.76,190.68,0.7864064]
[1735509005245,10.54218741,190.77,190.71,10.54218741]
[1735509006140,10.54218741,190.78,190.71,10.54218741]
[1735509006338,11.32497236,190.77,190.68,0.7864064]
[1735509006515,0.78278495,190.77,190.71,10.54218741]
[1735509006714,10.54218741,190.77,190.71,10.54218741]
[1735509008241,1.5483,190.8,190.74,10.54218741]
[1735509008609,10.54218741,190.82,190.75,10.54218741]
[1735509009115,10.54218741,190.83,190.76,10.54218741]
[1735509009503,10.54218741,190.82,190.76,10.54218741]
[1735509010446,10.54218741,190.83,190.76,10.54218741]
[1735509010654,2.41258495,190.89,190.8,10.54218741]
[1735509010818,10.54218741,190.86,190.8,10.54218741]
[1735509011244,10.54218741,190.86,190.79,10.54218741]
[1735509011449,10.54218741,190.86,190.8,10.54218741]
[1735509012375,2.41258495,190.89,190.8,10.54218741]
[1735509012560,10.54218741,190.87,190.8,10.54218741]
[1735509012941,10.54218741,190.88,190.82,10.54218741]
[1735509014566,12.95477236,190.89,190.82,10.54218741]
[1735509014765,10.54218741,190.92,190.86,10.54218741]
[1735509014971,2.41258495,190.95,190.86,10.54218741]
[1735509015172,10.54218741,190.92,190.86,10.54218741]
[1735509015374,10.54218741,190.89,190.79,0.78572122]
[1735509015563,10.54218741,190.88,190.81,10.54218741]
[1735509016346,10.54218741,190.88,190.82,10.54218741]
[1735509016662,10.54218741,190.89,190.82,10.54218741]
[1735509017475,10.54218741,190.88,190.79,20.78588872]
[1735509017684,10.54218741,190.87,190.81,10.54218741]
[1735509018751,10.54218741,190.87,190.8,10.54218741]
[1735509019683,10.54218741,190.86,190.79,10.54218741]
[1735509022688,10.54218741,190.84,190.78,10.54218741]
[1735509022888,10.54218741,190.79,190.71,7.43402683]
[1735509023060,10.54218741,190.78,190.71,17.19018741]
[1735509023262,10.54218741,190.79,190.72,10.54218741]
[1735509023957,0.78278495,190.78,190.72,10.54218741]
[1735509024399,10.54218741,190.8,190.73,10.54218741]
[1735509026201,10.54218741,190.79,190.72,10.54218741]
[1735509026700,11.32497236,190.78,190.71,10.54218741]
[1735509030308,12.11328741,190.79,190.72,10.54218741]
[1735509031807,11.32497236,190.78,190.71,10.54218741]
[1735509033110,1.5711,190.79,190.72,10.54218741]
[1735509033274,1.5711,190.79,190.74,10.54218741]
[1735509033904,0.78278495,190.83,190.75,10.54218741]
[1735509034212,10.54218741,190.82,190.76,10.54218741]
[1735509035110,10.54218741,190.83,190.76,10.54218741]
[1735509035309,10.54218741,190.82,190.76,10.54218741]
[1735509038411,10.54218741,190.83,190.76,10.54218741]
[1735509040293,10.54218741,190.82,190.75,10.54218741]
[1735509041016,10.54218741,190.83,190.76,10.54218741]
[1735509041406,1.5222,190.84,190.75,10.54218741]
[1735509041607,10.54218741,190.81,190.74,10.54218741]
[1735509041926,0.78278495,190.83,190.73,10.54218741]
[1735509041927,10.54218741,190.8,190.73,10.54218741]
[1735509042227,0.78278495,190.83,190.71,0.78613432]
[1735509042228,10.54218741,190.81,190.74,10.54218741]
[1735509044528,2.30498495,190.84,190.74,10.54218741]
[1735509044742,10.54218741,190.81,190.74,10.54218741]
[1735509045301,10.54218741,190.81,190.71,0.78613432]
[1735509045302,10.54218741,190.79,190.72,10.54218741]
[1735509046031,10.54218741,190.77,190.7,20.0]
[1735509046231,10.54218741,190.78,190.71,10.54218741]
[1735509047410,0.78278495,190.77,190.68,0.78620684]
[1735509047733,10.54218741,190.75,190.67,6.648]
[1735509047915,10.54218741,190.74,190.67,10.54218741]
[1735509048103,12.19628741,190.76,190.69,10.54218741]
[1735509048547,0.78278495,190.75,190.69,10.54218741]
[1735509048952,12.19628741,190.76,190.69,10.54218741]
[1735509049323,0.78278495,190.75,190.69,10.54218741]
[1735509049839,12.19628741,190.76,190.69,10.54218741]
[1735509050037,0.78278495,190.75,190.69,10.04218741]
[1735509051153,11.32497236,190.75,190.69,10.04218741]
[1735509051352,10.54218741,190.75,190.67,20.0]
[1735509051523,10.54218741,190.75,190.65,0.78647556]
[1735509051524,10.54218741,190.75,190.68,10.54218741]
[1735509051928,1.6541,190.76,190.69,10.54218741]
[1735509052132,1.6541,190.76,190.72,10.54218741]
[1735509052350,11.32497236,190.78,190.72,10.54218741]
[1735509052859,10.54218741,190.79,190.72,10.54218741]
[1735509055851,12.19628741,190.8,190.73,10.54218741]
[1735509056061,1.6541,190.8,190.75,10.54218741]
[1735509056467,1.6541,190.8,190.74,10.54218741]
[1735509056638,0.78278495,190.83,190.76,10.54218741]
[1735509056838,10.54218741,190.82,190.76,10.54218741]
[1735509057858,10.54218741,190.81,190.75,10.54218741]
[1735509058063,1.6541,190.86,190.76,10.54218741]
[1735509058064,10.54218741,190.82,190.76,10.54218741]
[1735509059659,10.54218741,190.82,190.75,10.54218741]
[1735509059962,10.54218741,190.82,190.76,10.54218741]
[1735509061251,10.54218741,190.82,190.75,10.54218741]
[1735509061460,10.54218741,190.81,190.75,10.54218741]
[1735509063262,10.54218741,190.81,190.74,10.54218741]
[1735509065650,10.54218741,190.8,190.74,10.54218741]
[1735509067841,10.54218741,190.8,190.73,10.54218741]
[1735509068755,10.54218741,190.8,190.74,10.54218741]
[1735509070567,1.6541,190.86,190.76,10.54218741]
[1735509070864,10.54218741,190.82,190.76,10.54218741]
[1735509073946,10.54218741,190.82,190.75,10.54218741]
[1735509075467,12.19628741,190.86,190.79,10.54218741]
[1735509076047,1.6541,190.86,190.81,10.54218741]
[1735509077290,1.6541,190.86,190.76,0.78608763]
[1735509077291,12.19628741,190.86,190.8,10.54218741]
[1735509077786,10.54218741,190.87,190.81,10.54218741]
[1735509078092,10.54218741,190.86,190.78,0.78590389]
[1735509078295,10.54218741,190.86,190.8,10.54218741]
[1735509079399,10.54218741,190.86,190.78,0.78590389]
[1735509079400,10.54218741,190.84,190.78,0.78590389]
[1735509079709,10.54218741,190.83,190.77,10.54218741]
[1735509084403,10.54218741,190.83,190.74,0.78596927]
[1735509084583,10.54218741,190.82,190.75,10.54218741]
[1735509085076,10.54218741,190.81,190.75,10.54218741]
[1735509085686,10.54218741,190.8,190.73,6.6591]
[1735509085891,10.54218741,190.8,190.73,17.20128741]
[1735509086089,10.54218741,190.8,190.73,10.54218741]
[1735509086400,10.54218741,190.78,190.71,10.54218741]
[1735509086900,10.54218741,190.77,190.71,10.54218741]
[1735509087408,10.54218741,190.77,190.7,10.54218741]
[1735509087902,9.00005052,190.87,190.66,0.78635523]
[1735509087903,10.54218741,190.73,190.66,0.78635523]
[1735509088203,10.54218741,190.73,190.67,10.54218741]
[1735509088405,10.54218741,190.74,190.67,10.54218741]
[1735509088908,10.54218741,190.72,190.65,0.78649617]
[1735509089093,10.54218741,190.72,190.64,44.92981766]
[1735509089278,12.18398741,190.73,190.64,44.92981766]
[1735509089681,1.6418,190.73,190.69,10.54218741]
[1735509089876,10.54218741,190.77,190.7,11.32861583]
[1735509090174,10.54218741,190.75,190.7,0.78642842]
[1735509090378,10.54218741,190.75,190.65,0.7863456]
[1735509090601,10.54218741,190.76,190.69,10.54218741]
[1735509090774,10.54218741,190.76,190.65,0.7863456]
[1735509090979,11.32497236,190.75,190.68,10.54218741]
[1735509091286,10.54218741,190.75,190.68,10.54218741]
[1735509091982,10.54218741,190.76,190.65,0.7863456]
[1735509092204,2.42458495,190.78,190.65,0.7863456]
[1735509092205,10.54218741,190.75,190.65,0.7863456]
[1735509092386,10.54218741,190.75,190.68,10.54218741]
[1735509092723,10.54218741,190.76,190.69,10.54218741]
[1735509094787,21.6418,190.78,190.7,10.54218741]
[1735509095104,11.32497236,190.77,190.7,10.54218741]
[1735509095411,10.54218741,190.76,190.69,10.54218741]
[1735509095619,1.6418,190.78,190.7,10.54218741]
[1735509095907,12.18398741,190.78,190.71,10.54218741]
[1735509097337,10.54218741,190.77,190.67,20.7863103]
[1735509097512,10.54218741,190.77,190.71,10.54218741]
[1735509098312,12.18398741,190.78,190.71,10.54218741]
[1735509101126,1.6418,190.78,190.72,10.54218741]
[1735509101333,12.18398741,190.78,190.71,10.54218741]
[1735509101621,12.96677236,190.78,190.71,10.54218741]
[1735509101820,10.54218741,190.76,190.67,20.7863103]
[1735509102038,1.6418,190.78,190.7,10.54218741]
[1735509102330,10.54218741,190.77,190.7,10.54218741]
[1735509103098,12.18398741,190.78,190.71,10.54218741]
[1735509103426,11.32497236,190.77,190.7,10.54218741]
[1735509106936,10.54218741,190.76,190.7,10.54218741]
[1735509107227,10.54218741,190.75,190.67,20.0]
[1735509107414,10.54218741,190.76,190.69,10.54218741]
[1735509108430,10.54218741,190.74,190.67,10.54218741]
[1735509109108,10.54218741,190.75,190.67,10.54218741]
[1735509110140,10.54218741,190.72,190.65,0.78642286]
[1735509110341,10.54218741,190.71,190.64,55.47200507]
[1735509110633,10.54218741,190.72,190.65,10.54218741]
[1735509110808,10.54218741,190.73,190.66,10.54218741]
[1735509111009,10.54218741,190.72,190.65,10.54218741]
[1735509114731,10.54218741,190.72,190.64,44.92981766]
[1735509114910,10.54218741,190.72,190.65,10.54218741]
[1735509115432,10.54218741,190.72,190.64,44.92981766]
[1735509115634,10.54218741,190.72,190.65,10.54218741]
[1735509115806,10.54218741,190.72,190.64,55.47200507]
[1735509116012,10.54218741,190.71,190.64,55.47200507]
[1735509116247,10.54218741,190.71,190.65,10.54218741]
[1735509117444,10.54218741,190.72,190.65,10.54218741]
[1735509118238,0.78278495,190.74,190.65,10.54218741]
[1735509118442,0.78278495,190.74,190.66,10.54218741]
[1735509118632,10.54218741,190.72,190.66,10.54218741]
[1735509119358,10.54218741,190.72,190.65,10.54218741]
[1735509121542,0.78278495,190.74,190.66,10.54218741]
[1735509121844,1.6418,190.78,190.71,10.54218741]
[1735509121845,10.54218741,190.77,190.71,10.54218741]
[1735509122345,11.32497236,190.76,190.69,10.54218741]
[1735509122559,10.54218741,190.76,190.69,10.54218741]
[1735509122922,0.78278495,190.75,190.69,10.54218741]
[1735509123124,10.54218741,190.76,190.69,10.54218741]
[1735509123336,11.32497236,190.75,190.69,10.54218741]
[1735509123637,10.54218741,190.75,190.69,10.54218741]
[1735509124248,10.54218741,190.74,190.67,11.32870897]
[1735509124542,10.54218741,190.75,190.69,10.54218741]
[1735509125122,2.42458495,190.78,190.69,10.54218741]
[1735509125123,10.54218741,190.76,190.69,10.54218741]
[1735509125619,10.54218741,190.76,190.7,10.54218741]
[1735509125942,10.54218741,190.76,190.69,10.54218741]
[1735509127452,1.6418,190.78,190.7,10.54218741]
[1735509127946,1.6418,190.78,190.72,10.54218741]
[1735509128130,1.5746,190.82,190.73,10.54218741]
[1735509128328,10.54218741,190.79,190.72,10.54218741]
[1735509128534,10.54218741,190.76,190.69,0.78625063]
[1735509128735,10.54218741,190.75,190.68,10.54218741]
[1735509128919,10.54218741,190.75,190.65,0.78635247]
[1735509129120,10.54218741,190.75,190.68,10.54218741]
[1735509129848,0.78278495,190.78,190.7,10.54218741]
[1735509130046,10.54218741,190.77,190.7,10.54218741]
[1735509130717,10.54218741,190.75,190.69,0.7863629]
[1735509131047,10.54218741,190.75,190.65,0.78635632]
[1735509131245,10.54218741,190.75,190.68,10.54218741]
[1735509132235,10.54218741,190.75,190.67,10.54218741]
[1735509132437,10.54218741,190.74,190.67,10.54218741]
[1735509133348,10.54218741,190.73,190.66,10.54218741]
[1735509133551,10.54218741,190.73,190.65,0.78635632]
[1735509133552,10.54218741,190.72,190.65,10.54218741]
[1735509133755,10.54218741,190.72,190.65,0.78651457]
[1735509133949,10.54218741,190.7,190.64,44.92981766]
[1735509134152,0.78278495,190.74,190.64,44.92981766]
[1735509134153,10.54218741,190.67,190.64,44.92981766]
[1735509134342,10.54218741,190.68,190.64,44.92981766]
[1735509134736,10.54218741,190.69,190.64,44.92981766]
[1735509134934,10.54218741,190.67,190.64,44.92981766]
[1735509135136,10.54218741,190.69,190.64,44.92981766]
[1735509135338,7.28238495,190.72,190.64,44.92981766]
[1735509135538,10.54218741,190.7,190.64,44.92981766]
[1735509135838,10.54218741,190.68,190.64,44.92981766]
[1735509136054,1.6077,190.67,190.64,44.92981766]
[1735509136351,10.54218741,190.66,190.64,44.92981766]
[1735509136575,6.4996,190.72,190.64,55.47200507]
[1735509136576,8.1073,190.72,190.64,55.47200507]
[1735509136873,10.54218741,190.73,190.65,0.78653419]
[1735509137036,10.54218741,190.74,190.67,10.54218741]
[1735509137363,2.39048495,190.76,190.64,44.92981766]
[1735509137364,10.54218741,190.71,190.64,44.92981766]
[1735509137533,0.78278495,190.71,190.66,10.54218741]
[1735509137734,10.54218741,190.68,190.64,44.92981766]
[1735509138159,10.54218741,190.69,190.64,44.92981766]
[1735509138539,1.6077,190.68,190.64,44.92981766]
[1735509139356,11.32497236,190.67,190.64,44.92981766]
[1735509139539,34.31907141,190.66,190.64,44.92981766]
[1735509139738,35.10185636,190.65,190.64,44.92981766]
[1735509140054,2.39048495,190.68,190.64,44.92981766]
[1735509140542,1.6077,190.68,190.64,55.47200507]
[1735509141143,10.54218741,190.66,190.64,44.92981766]
[1735509141343,34.31907141,190.67,190.64,44.92981766]
[1735509141654,0.78278495,190.66,190.64,44.92981766]
[1735509142164,10.54218741,190.65,190.64,44.92981766]
[1735509142665,11.32497236,190.66,190.64,44.92981766]
[1735509143071,3.9339,190.65,190.64,38.12351766]
[1735509143369,3.9339,190.65,190.64,28.66291766]
[1735509144243,3.9339,190.65,190.64,25.63541766]
[1735509144244,14.47608741,190.65,190.64,25.63541766]
[1735509144458,14.47608741,190.65,190.64,23.03071766]
[1735509144660,14.47608741,190.65,190.64,20.42601766]
[1735509145862,11.32497236,190.66,190.64,20.42601766]
[1735509146370,10.54218741,190.65,190.64,20.42601766]
[1735509146562,0.78278495,190.66,190.64,20.42601766]
[1735509146951,1.6077,190.68,190.64,20.42601766]
[1735509147550,1.6077,190.68,190.64,30.96820507]
[1735509148053,1.6077,190.68,190.65,10.54218741]
[1735509149464,0.78278495,190.7,190.66,10.54218741]
[1735509149677,0.78278495,190.72,190.66,10.54218741]
[1735509151472,1.6077,190.73,190.69,10.54218741]
[1735509151678,1.6077,190.73,190.7,10.54218741]
[1735509152951,10.54218741,190.77,190.71,10.54218741]
[1735509152952,0.78278495,190.76,190.71,10.54218741]
[1735509153274,2.28658495,190.77,190.73,10.54218741]
[1735509154084,1.5038,190.77,190.73,10.54218741]
[1735509155269,1.5038,190.77,190.66,1.5579]
[1735509155270,1.5038,190.77,190.72,10.54218741]
[1735509156676,1.5038,190.77,190.73,10.54218741]
[1735509157280,1.5038,190.77,190.74,10.54218741]
[1735509157655,11.32497236,190.8,190.74,10.54218741]
[1735509157979,1.5038,190.82,190.76,10.54218741]
[1735509158982,1.5038,190.82,190.77,10.54218741]
[1735509159275,1.5038,190.82,190.78,10.54218741]
[1735509159464,2.28658495,190.86,190.8,10.54218741]
[1735509159660,14.55032807,190.85,190.75,20.0]
[1735509159855,0.78278495,190.84,190.78,10.54218741]
[1735509160165,14.55032807,190.85,190.75,20.0]
[1735509160166,14.55032807,190.85,190.79,10.54218741]
[1735509160577,4.00814066,190.85,190.79,10.54218741]
[1735509160761,0.78278495,190.84,190.79,10.54218741]
[1735509161068,4.79092561,190.85,190.79,10.54218741]
[1735509161466,4.79092561,190.85,190.75,20.0]
[1735509161467,4.79092561,190.85,190.8,10.54218741]
[1735509162383,0.78278495,190.85,190.8,10.54218741]
[1735509162784,0.78278495,190.85,190.79,10.54218741]
[1735509163002,2.28658495,190.86,190.81,10.54218741]
[1735509164403,12.82877236,190.86,190.8,10.54218741]
[1735509164592,10.54218741,190.83,190.72,6.2378]
[1735509164763,0.78278495,190.82,190.76,10.54218741]
[1735509165857,0.78278495,190.82,190.72,6.2378]
[1735509165858,0.78278495,190.82,190.77,10.54218741]
[1735509166062,0.78278495,190.83,190.78,10.54218741]
[1735509166288,0.78278495,190.83,190.77,10.54218741]
[1735509167186,11.32497236,190.83,190.77,10.54218741]
[1735509167758,10.54218741,190.81,190.7,1.5579]
[1735509167963,11.32497236,190.8,190.73,10.54218741]
[1735509168689,10.54218741,190.79,190.7,21.5579]
[1735509168886,0.78278495,190.78,190.72,10.54218741]
[1735509169892,11.32497236,190.8,190.74,10.54218741]
[1735509170065,11.32497236,190.8,190.73,10.54218741]
[1735509170272,11.32497236,190.8,190.74,10.54218741]
[1735509170598,0.78278495,190.8,190.74,10.54218741]
[1735509171182,11.32497236,190.8,190.74,10.54218741]
[1735509171789,11.32497236,190.8,190.73,10.54218741]
[1735509172383,10.54218741,190.8,190.74,10.54218741]
[1735509172589,16.56428535,190.81,190.75,10.54218741]
[1735509173063,6.02209794,190.81,190.75,10.54218741]
[1735509173391,11.32497236,190.81,190.74,10.54218741]
[1735509173887,11.32497236,190.81,190.7,21.5579]
[1735509173888,10.54218741,190.79,190.72,10.54218741]
[1735509174109,10.54218741,190.8,190.74,10.54218741]
[1735509174314,3.9114338,190.82,190.76,10.54218741]
[1735509174607,4.69421875,190.82,190.76,10.54218741]
[1735509175003,15.23640616,190.82,190.75,10.54218741]
[1735509175302,4.69421875,190.82,190.7,20.78634423]
[1735509175520,10.54218741,190.81,190.75,10.54218741]
[1735509175675,10.54218741,190.81,190.74,10.54218741]
[1735509176001,15.23640616,190.82,190.75,10.54218741]
[1735509176218,4.69421875,190.82,190.76,10.54218741]
[1735509177026,3.9114338,190.82,190.76,10.54218741]
[1735509177213,3.9114338,190.82,190.77,10.54218741]
[1735509177591,0.78278495,190.81,190.72,10.54218741]
[1735509177818,10.54218741,190.79,190.72,10.54218741]
[1735509178131,10.54218741,190.8,190.73,10.54218741]
[1735509178286,0.78278495,190.79,190.73,10.54218741]
[1735509178928,10.54218741,190.77,190.66,6.2685]
[1735509179131,10.54218741,190.78,190.71,10.54218741]
[1735509179289,11.32497236,190.78,190.71,10.54218741]
[1735509180430,0.78278495,190.78,190.72,10.54218741]
[1735509181023,0.78278495,190.78,190.73,10.54218741]
[1735509181317,0.78278495,190.78,190.72,10.54218741]
[1735509182790,10.54218741,190.79,190.72,10.54218741]
[1735509183111,34.31907141,190.8,190.73,10.54218741]
[1735509183687,34.31907141,190.8,190.69,20.0]
[1735509183888,6.1765,190.82,190.69,20.0]
[1735509183889,23.776884,190.78,190.69,20.0]
[1735509184092,0.78278495,190.78,190.72,10.54218741]
[1735509184289,10.54218741,190.79,190.72,10.54218741]
[1735509184506,0.78278495,190.78,190.73,10.54218741]
[1735509184706,10.54218741,190.8,190.73,10.54218741]
[1735509184910,10.35686979,190.84,190.76,10.54218741]
[1735509185119,0.78278495,190.83,190.77,10.54218741]
[1735509185300,0.78278495,190.83,190.78,10.54218741]
[1735509185500,11.32497236,190.83,190.77,10.54218741]
[1735509186017,0.78278495,190.83,190.77,10.54218741]
[1735509186209,10.54218741,190.85,190.79,10.54218741]
[1735509186523,12.82877236,190.86,190.79,10.54218741]
[1735509187316,10.54218741,190.85,190.79,10.54218741]
[1735509187514,10.54218741,190.84,190.77,10.54218741]
[1735509187713,10.54218741,190.84,190.78,10.54218741]
[1735509188720,10.54218741,190.85,190.78,10.54218741]
[1735509189923,10.54218741,190.84,190.77,10.54218741]
[1735509190136,11.32497236,190.83,190.76,10.54218741]
[1735509190428,10.54218741,190.82,190.75,10.54218741]
[1735509190611,11.32497236,190.83,190.76,10.54218741]
[1735509190998,10.54218741,190.83,190.76,10.54218741]
[1735509191829,11.32497236,190.84,190.77,10.54218741]